[Event "Titled Tuesday Blitz February 22 Early 2022"]
[White "Obolenskikh, Dmitry"]
[Black "Yilmaz, Mustafa"]
[WhiteFideId "4156013"]
[BlackFideId "6302718"]
[WhiteElo "2512"]
[BlackElo "2568"]
[Result "0-1"]
[Round "06"]
[TimeControl "180+1"]
[Date "2022.02.22"]
[WhiteClock "0:01:01"]
[BlackClock "0:00:59"]

1. Nf3 {[%clk 0:03:00]}  c6 {[%clk 0:02:57]} 2. c4 {[%clk 0:03:00]}  d5 {[%clk 0:02:55]} 3. e3 {[%clk 0:03:00]}  Nf6 {[%clk 0:02:54]} 4. Nc3 {[%clk 0:03:01]}  e6 {[%clk 0:02:54]} 5. b3 {[%clk 0:03:00]}  Nbd7 {[%clk 0:02:54]} 6. Bb2 {[%clk 0:03:01]}  Bd6 {[%clk 0:02:55]} 7. d4 {[%clk 0:03:00]}  Ne4 {[%clk 0:02:53]} 8. Bd3 {[%clk 0:02:59]}  f5 {[%clk 0:02:45]} 9. O-O {[%clk 0:02:58]}  O-O {[%clk 0:02:45]} 10. Ne2 {[%clk 0:02:55]}  Qf6 {[%clk 0:02:39]} 11. a4 {[%clk 0:02:53]}  g5 {[%clk 0:02:35]} 12. Ba3 {[%clk 0:02:51]}  Bxa3 {[%clk 0:02:27]} 13. Rxa3 {[%clk 0:02:52]}  a5 {[%clk 0:02:22]} 14. Ra1 {[%clk 0:02:42]}  h5 {[%clk 0:02:14]} 15. Ne1 {[%clk 0:02:36]}  h4 {[%clk 0:02:08]} 16. f3 {[%clk 0:02:36]}  Nd6 {[%clk 0:02:08]} 17. Nc2 {[%clk 0:02:24]}  Qh6 {[%clk 0:02:07]} 18. Qd2 {[%clk 0:02:15]}  Nf6 {[%clk 0:02:04]} 19. Nc3 {[%clk 0:02:09]}  Bd7 {[%clk 0:02:01]} 20. c5 {[%clk 0:02:04]}  Nf7 {[%clk 0:02:00]} 21. b4 {[%clk 0:02:01]}  axb4 {[%clk 0:01:56]} 22. Nxb4 {[%clk 0:02:02]}  Rae8 {[%clk 0:01:56]} 23. f4 {[%clk 0:01:55]}  gxf4 {[%clk 0:01:52]} 24. exf4 {[%clk 0:01:55]}  Qg7 {[%clk 0:01:46]} 25. Ne2 {[%clk 0:01:47]}  Nh6 {[%clk 0:01:44]} 26. a5 {[%clk 0:01:45]}  Ne4 {[%clk 0:01:32]} 27. Bxe4 {[%clk 0:01:43]}  fxe4 {[%clk 0:01:33]} 28. a6 {[%clk 0:01:42]}  bxa6 {[%clk 0:01:32]} 29. Rxa6 {[%clk 0:01:39]}  Ra8 {[%clk 0:01:23]} 30. Rfa1 {[%clk 0:01:26]}  Rxa6 {[%clk 0:01:22]} 31. Rxa6 {[%clk 0:01:27]}  Nf5 {[%clk 0:01:10]} 32. Nxc6 {[%clk 0:01:16]}  Bxc6 {[%clk 0:01:11]} 33. Rxc6 {[%clk 0:01:16]}  Ra8 {[%clk 0:01:11]} 34. Qc3 {[%clk 0:01:03]}  Ra2 {[%clk 0:01:04]} 35. Kf1 {[%clk 0:01:01]}  Qg4 {[%clk 0:00:59]} 0-1


[Site "https://www.chess.com"]

[Event "Titled Tuesday Blitz February 22 Early 2022"]
[White "Ozates, Tuna"]
[Black "Nosacheva, Mariya"]
[WhiteFideId "6354521"]
[BlackFideId "34111422"]
[WhiteElo "1872"]
[BlackElo "2055"]
[Result "1-0"]
[Round "06"]
[TimeControl "180+1"]
[Date "2022.02.22"]
[WhiteClock "0:02:42"]
[BlackClock "0:02:11"]

1. e4 {[%clk 0:03:00]}  c5 {[%clk 0:02:58]} 2. Nf3 {[%clk 0:03:00]}  d6 {[%clk 0:02:57]} 3. Bb5+ {[%clk 0:02:56]}  Bd7 {[%clk 0:02:54]} 4. Bxd7+ {[%clk 0:02:53]}  Qxd7 {[%clk 0:02:55]} 5. O-O {[%clk 0:02:54]}  g6 {[%clk 0:02:48]} 6. c3 {[%clk 0:02:53]}  Bg7 {[%clk 0:02:46]} 7. d4 {[%clk 0:02:53]}  cxd4 {[%clk 0:02:42]} 8. cxd4 {[%clk 0:02:54]}  e5 {[%clk 0:02:42]} 9. Nc3 {[%clk 0:02:51]}  Nc6 {[%clk 0:02:38]} 10. dxe5 {[%clk 0:02:50]}  Nxe5 {[%clk 0:02:34]} 11. Nxe5 {[%clk 0:02:48]}  Bxe5 {[%clk 0:02:31]} 12. Nd5 {[%clk 0:02:48]}  Ne7 {[%clk 0:02:28]} 13. Bh6 {[%clk 0:02:47]}  Nxd5 {[%clk 0:02:21]} 14. Qxd5 {[%clk 0:02:47]}  Qc6 {[%clk 0:02:20]} 15. Qd3 {[%clk 0:02:43]}  O-O-O {[%clk 0:02:11]} 16. Rac1 {[%clk 0:02:42]} 1-0


[Site "https://www.chess.com"]

[Event "Titled Tuesday Blitz February 22 Early 2022"]
[White "Petesch, Gabriel"]
[Black "Kobo, Ori"]
[WhiteFideId "2032465"]
[BlackFideId "2812320"]
[WhiteElo "2374"]
[BlackElo "2420"]
[Result "0-1"]
[Round "06"]
[TimeControl "180+1"]
[Date "2022.02.22"]
[WhiteClock "0:00:01"]
[BlackClock "0:00:23"]

1. b3 {[%clk 0:03:00]}  e5 {[%clk 0:03:00]} 2. Bb2 {[%clk 0:02:54]}  Nc6 {[%clk 0:03:00]} 3. g3 {[%clk 0:02:45]}  d5 {[%clk 0:02:59]} 4. Bg2 {[%clk 0:02:42]}  Be6 {[%clk 0:02:59]} 5. e3 {[%clk 0:02:34]}  Qd7 {[%clk 0:02:53]} 6. d3 {[%clk 0:02:31]}  f6 {[%clk 0:02:46]} 7. Nd2 {[%clk 0:02:30]}  Bd6 {[%clk 0:02:32]} 8. Qh5+ {[%clk 0:02:15]}  g6 {[%clk 0:02:27]} 9. Qd1 {[%clk 0:02:07]}  Nge7 {[%clk 0:02:24]} 10. h4 {[%clk 0:02:06]}  O-O-O {[%clk 0:02:19]} 11. a3 {[%clk 0:02:06]}  f5 {[%clk 0:02:07]} 12. Ngf3 {[%clk 0:02:05]}  Rhe8 {[%clk 0:02:03]} 13. Qe2 {[%clk 0:02:02]}  e4 {[%clk 0:02:01]} 14. Ng5 {[%clk 0:02:02]}  Bg8 {[%clk 0:01:44]} 15. d4 {[%clk 0:01:25]}  h6 {[%clk 0:01:40]} 16. Nh3 {[%clk 0:01:24]}  Kb8 {[%clk 0:01:28]} 17. c4 {[%clk 0:00:53]}  dxc4 {[%clk 0:01:28]} 18. bxc4 {[%clk 0:00:54]}  Nc8 {[%clk 0:01:26]} 19. c5 {[%clk 0:00:53]}  Bf8 {[%clk 0:01:22]} 20. Nc4 {[%clk 0:00:33]}  N8e7 {[%clk 0:01:19]} 21. Nf4 {[%clk 0:00:32]}  Bf7 {[%clk 0:01:08]} 22. Rb1 {[%clk 0:00:29]}  Nd5 {[%clk 0:00:59]} 23. Bf1 {[%clk 0:00:17]}  g5 {[%clk 0:00:55]} 24. hxg5 {[%clk 0:00:16]}  hxg5 {[%clk 0:00:56]} 25. Nxd5 {[%clk 0:00:16]}  Qxd5 {[%clk 0:00:57]} 26. Bc3 {[%clk 0:00:15]}  Ka8 {[%clk 0:00:54]} 27. Qb2 {[%clk 0:00:13]}  Rb8 {[%clk 0:00:48]} 28. Nd2 {[%clk 0:00:14]}  b5 {[%clk 0:00:39]} 29. Bxb5 {[%clk 0:00:05]}  a6 {[%clk 0:00:35]} 30. Bxc6+ {[%clk 0:00:04]}  Qxc6 {[%clk 0:00:36]} 31. Qc2 {[%clk 0:00:03]}  Rxb1+ {[%clk 0:00:35]} 32. Qxb1 {[%clk 0:00:03]}  Rb8 {[%clk 0:00:34]} 33. Qc2 {[%clk 0:00:04]}  Qb5 {[%clk 0:00:34]} 34. a4 {[%clk 0:00:03]}  Qc6 {[%clk 0:00:28]} 35. Kf1 {[%clk 0:00:02]}  Bd5 {[%clk 0:00:27]} 36. Kg2 {[%clk 0:00:01]}  f4 {[%clk 0:00:27]} 37. Rf1 {[%clk 0:00:01]}  Be7 {[%clk 0:00:24]} 38. Rb1 {[%clk 0:00:01]}  Rh8 {[%clk 0:00:23]} 39. gxf4 {[%clk 0:00:01]}  gxf4 {[%clk 0:00:23]} 40. Rh1 {[%clk 0:00:01]}  Qg6+ {[%clk 0:00:23]} 41. Kf1 {[%clk 0:00:01]}  Rxh1+ {[%clk 0:00:23]} 0-1


[Site "https://www.chess.com"]

[Event "Titled Tuesday Blitz February 22 Early 2022"]
[White "Pires, Marcos Vinicius Torsani"]
[Black "Dovbnia, Nikita"]
[WhiteFideId "2118939"]
[BlackFideId "54104599"]
[WhiteElo "2273"]
[BlackElo "2111"]
[Result "1-0"]
[Round "06"]
[TimeControl "180+1"]
[Date "2022.02.22"]
[WhiteClock "0:00:16"]
[BlackClock "0:00:14"]

1. e4 {[%clk 0:02:56]}  c5 {[%clk 0:02:59]} 2. c3 {[%clk 0:02:56]}  d5 {[%clk 0:02:59]} 3. exd5 {[%clk 0:02:57]}  Qxd5 {[%clk 0:02:59]} 4. d4 {[%clk 0:02:57]}  Nc6 {[%clk 0:02:57]} 5. Nf3 {[%clk 0:02:57]}  Bg4 {[%clk 0:02:57]} 6. Be2 {[%clk 0:02:57]}  Nf6 {[%clk 0:02:50]} 7. c4 {[%clk 0:02:55]}  Qe4 {[%clk 0:02:40]} 8. Nc3 {[%clk 0:02:54]}  Qf5 {[%clk 0:02:33]} 9. d5 {[%clk 0:02:26]}  Bxf3 {[%clk 0:02:24]} 10. Bxf3 {[%clk 0:02:27]}  Nd4 {[%clk 0:02:23]} 11. O-O {[%clk 0:02:12]}  Nxf3+ {[%clk 0:02:23]} 12. Qxf3 {[%clk 0:02:13]}  Qxf3 {[%clk 0:02:23]} 13. gxf3 {[%clk 0:02:14]}  g6 {[%clk 0:02:19]} 14. Ne4 {[%clk 0:02:13]}  Nd7 {[%clk 0:02:13]} 15. Re1 {[%clk 0:02:07]}  O-O-O {[%clk 0:02:10]} 16. b4 {[%clk 0:01:58]}  cxb4 {[%clk 0:01:54]} 17. Rb1 {[%clk 0:01:57]}  h6 {[%clk 0:01:22]} 18. Bf4 {[%clk 0:01:40]}  f5 {[%clk 0:01:13]} 19. Nd2 {[%clk 0:01:28]}  Nc5 {[%clk 0:01:08]} 20. Be3 {[%clk 0:01:12]}  Nd3 {[%clk 0:00:46]} 21. Red1 {[%clk 0:01:13]}  Bg7 {[%clk 0:00:36]} 22. Bxa7 {[%clk 0:00:59]}  b5 {[%clk 0:00:26]} 23. cxb5 {[%clk 0:00:48]}  Rxd5 {[%clk 0:00:26]} 24. Nc4 {[%clk 0:00:37]}  Kb7 {[%clk 0:00:22]} 25. Be3 {[%clk 0:00:30]}  f4 {[%clk 0:00:20]} 26. Bd2 {[%clk 0:00:20]}  Rc8 {[%clk 0:00:20]} 27. Na5+ {[%clk 0:00:17]}  Kb6 {[%clk 0:00:20]} 28. Nb3 {[%clk 0:00:16]}  Kxb5 {[%clk 0:00:19]} 29. a3 {[%clk 0:00:15]}  Ne5 {[%clk 0:00:13]} 30. Bxb4 {[%clk 0:00:14]}  Nxf3+ {[%clk 0:00:12]} 31. Kg2 {[%clk 0:00:14]}  Nd4 {[%clk 0:00:11]} 32. Nxd4+ {[%clk 0:00:14]}  Rxd4 {[%clk 0:00:12]} 33. Bc3+ {[%clk 0:00:13]}  Kc4 {[%clk 0:00:11]} 34. Bxd4 {[%clk 0:00:14]}  Bxd4 {[%clk 0:00:12]} 35. Rbc1+ {[%clk 0:00:13]}  Bc3 {[%clk 0:00:12]} 36. Rxc3+ {[%clk 0:00:14]}  Kxc3 {[%clk 0:00:13]} 37. Rc1+ {[%clk 0:00:15]}  Kb3 {[%clk 0:00:13]} 38. Rxc8 {[%clk 0:00:15]}  Kxa3 {[%clk 0:00:14]} 39. Re8 {[%clk 0:00:16]} 1-0


[Site "https://www.chess.com"]

[Event "Titled Tuesday Blitz February 22 Early 2022"]
[White "Ponkratov, Pavel"]
[Black "Tregubov, Pavel V."]
[WhiteFideId "4157800"]
[BlackFideId "4115341"]
[WhiteElo "2487"]
[BlackElo "2341"]
[Result "1-0"]
[Round "06"]
[TimeControl "180+1"]
[Date "2022.02.22"]
[WhiteClock "0:00:15"]
[BlackClock "0:00:10"]

1. d4 {[%clk 0:03:00]}  Nf6 {[%clk 0:02:57]} 2. c4 {[%clk 0:03:00]}  e6 {[%clk 0:02:57]} 3. Nc3 {[%clk 0:03:01]}  Bb4 {[%clk 0:02:57]} 4. Qa4 {[%clk 0:03:01]}  c5 {[%clk 0:02:52]} 5. a3 {[%clk 0:02:58]}  Bxc3+ {[%clk 0:02:51]} 6. bxc3 {[%clk 0:02:59]}  b6 {[%clk 0:02:46]} 7. Bg5 {[%clk 0:02:57]}  Bb7 {[%clk 0:02:44]} 8. f3 {[%clk 0:02:57]}  h6 {[%clk 0:02:40]} 9. Bh4 {[%clk 0:02:57]}  Nc6 {[%clk 0:02:28]} 10. Rd1 {[%clk 0:02:55]}  cxd4 {[%clk 0:02:15]} 11. cxd4 {[%clk 0:02:55]}  d5 {[%clk 0:02:14]} 12. cxd5 {[%clk 0:02:44]}  Qxd5 {[%clk 0:02:01]} 13. Bxf6 {[%clk 0:02:04]}  gxf6 {[%clk 0:02:00]} 14. e4 {[%clk 0:02:05]}  Qa5+ {[%clk 0:02:00]} 15. Qxa5 {[%clk 0:02:05]}  Nxa5 {[%clk 0:02:01]} 16. Ne2 {[%clk 0:02:01]}  Rc8 {[%clk 0:02:00]} 17. Nf4 {[%clk 0:01:59]}  Ke7 {[%clk 0:01:54]} 18. Be2 {[%clk 0:01:47]}  Rc3 {[%clk 0:01:52]} 19. Kf2 {[%clk 0:01:38]}  Rxa3 {[%clk 0:01:44]} 20. Rhe1 {[%clk 0:01:30]}  Rd8 {[%clk 0:01:36]} 21. d5 {[%clk 0:01:18]}  Rc3 {[%clk 0:01:20]} 22. dxe6 {[%clk 0:01:16]}  Rxd1 {[%clk 0:01:14]} 23. Rxd1 {[%clk 0:01:15]}  fxe6 {[%clk 0:01:15]} 24. Ng6+ {[%clk 0:01:10]}  Ke8 {[%clk 0:01:12]} 25. e5 {[%clk 0:01:02]}  fxe5 {[%clk 0:01:06]} 26. Nxe5 {[%clk 0:01:00]}  Bd5 {[%clk 0:01:04]} 27. f4 {[%clk 0:00:58]}  Rc2 {[%clk 0:01:03]} 28. f5 {[%clk 0:00:51]}  Nc4 {[%clk 0:00:51]} 29. Ng4 {[%clk 0:00:43]}  Nb2 {[%clk 0:00:42]} 30. Nf6+ {[%clk 0:00:17]}  Kf7 {[%clk 0:00:41]} 31. fxe6+ {[%clk 0:00:18]}  Kxf6 {[%clk 0:00:32]} 32. Rxd5 {[%clk 0:00:17]}  Kxe6 {[%clk 0:00:33]} 33. Rh5 {[%clk 0:00:17]}  Nd3+ {[%clk 0:00:32]} 34. Kf3 {[%clk 0:00:17]}  Ne5+ {[%clk 0:00:27]} 35. Ke3 {[%clk 0:00:16]}  Nf7 {[%clk 0:00:16]} 36. g4 {[%clk 0:00:16]}  Kf6 {[%clk 0:00:16]} 37. Rf5+ {[%clk 0:00:16]}  Kg7 {[%clk 0:00:16]} 38. h4 {[%clk 0:00:17]}  a5 {[%clk 0:00:15]} 39. Rd5 {[%clk 0:00:15]}  a4 {[%clk 0:00:14]} 40. Rd7 {[%clk 0:00:15]}  a3 {[%clk 0:00:13]} 41. Ra7 {[%clk 0:00:14]}  a2 {[%clk 0:00:14]} 42. Bf3 {[%clk 0:00:14]}  Kf6 {[%clk 0:00:13]} 43. Kf4 {[%clk 0:00:13]}  Rc4+ {[%clk 0:00:13]} 44. Kg3 {[%clk 0:00:13]}  Rc2 {[%clk 0:00:13]} 45. Bd5 {[%clk 0:00:13]}  Nd6 {[%clk 0:00:12]} 46. Bxa2 {[%clk 0:00:13]}  Rc3+ {[%clk 0:00:11]} 47. Kf4 {[%clk 0:00:13]}  Rc2 {[%clk 0:00:11]} 48. g5+ {[%clk 0:00:13]}  hxg5+ {[%clk 0:00:11]} 49. hxg5+ {[%clk 0:00:14]}  Kg6 {[%clk 0:00:10]} 50. Bb1 {[%clk 0:00:14]}  Kh5 {[%clk 0:00:10]} 51. Bxc2 {[%clk 0:00:15]} 1-0


[Site "https://www.chess.com"]

[Event "Titled Tuesday Blitz February 22 Early 2022"]
[White "Popadic, Dragan"]
[Black "Lorente Serrano, Rosa Adela"]
[WhiteFideId "913650"]
[BlackFideId "32091982"]
[WhiteElo "2199"]
[BlackElo "1820"]
[Result "1-0"]
[Round "06"]
[TimeControl "180+1"]
[Date "2022.02.22"]
[WhiteClock "0:00:10"]
[BlackClock "0:00:02"]

1. e4 {[%clk 0:03:00]}  c5 {[%clk 0:02:55]} 2. Nc3 {[%clk 0:03:00]}  e5 {[%clk 0:02:47]} 3. f4 {[%clk 0:02:59]}  exf4 {[%clk 0:02:43]} 4. Nf3 {[%clk 0:02:59]}  g6 {[%clk 0:02:43]} 5. Bc4 {[%clk 0:02:59]}  Bg7 {[%clk 0:02:42]} 6. d3 {[%clk 0:02:59]}  Ne7 {[%clk 0:02:40]} 7. Bxf4 {[%clk 0:02:54]}  O-O {[%clk 0:02:38]} 8. O-O {[%clk 0:02:54]}  Nbc6 {[%clk 0:02:31]} 9. Qd2 {[%clk 0:02:50]}  Na5 {[%clk 0:02:25]} 10. Bb3 {[%clk 0:02:48]}  Nxb3 {[%clk 0:02:22]} 11. axb3 {[%clk 0:02:47]}  d5 {[%clk 0:02:22]} 12. Bh6 {[%clk 0:02:32]}  dxe4 {[%clk 0:02:16]} 13. Nxe4 {[%clk 0:02:23]}  Bf5 {[%clk 0:02:12]} 14. Bxg7 {[%clk 0:02:22]}  Kxg7 {[%clk 0:02:07]} 15. Qc3+ {[%clk 0:02:21]}  f6 {[%clk 0:02:06]} 16. Nxc5 {[%clk 0:02:17]}  Rc8 {[%clk 0:01:56]} 17. Nd4 {[%clk 0:02:15]}  Qd6 {[%clk 0:01:52]} 18. Rxf5 {[%clk 0:01:46]}  Nxf5 {[%clk 0:01:45]} 19. Nde6+ {[%clk 0:01:42]}  Kg8 {[%clk 0:01:33]} 20. Qc4 {[%clk 0:01:36]}  Kh8 {[%clk 0:01:30]} 21. Nxf8 {[%clk 0:01:22]}  Rxc5 {[%clk 0:01:29]} 22. Qf7 {[%clk 0:01:17]}  Rc7 {[%clk 0:01:15]} 23. Qe8 {[%clk 0:01:02]}  Kg7 {[%clk 0:00:51]} 24. Ne6+ {[%clk 0:01:01]}  Kh6 {[%clk 0:00:48]} 25. Nxc7 {[%clk 0:00:59]}  Qxc7 {[%clk 0:00:48]} 26. c4 {[%clk 0:00:55]}  Qc5+ {[%clk 0:00:44]} 27. Kh1 {[%clk 0:00:53]}  Qf2 {[%clk 0:00:40]} 28. Qe1 {[%clk 0:00:50]}  Qd4 {[%clk 0:00:35]} 29. Qc1+ {[%clk 0:00:46]}  Kg7 {[%clk 0:00:34]} 30. Qc3 {[%clk 0:00:40]}  Qh4 {[%clk 0:00:31]} 31. Qe1 {[%clk 0:00:35]}  Qd4 {[%clk 0:00:25]} 32. Qe2 {[%clk 0:00:32]}  Qh4 {[%clk 0:00:21]} 33. Qf3 {[%clk 0:00:24]}  Qd4 {[%clk 0:00:14]} 34. Qxb7+ {[%clk 0:00:23]}  Kh6 {[%clk 0:00:14]} 35. Qxa7 {[%clk 0:00:22]}  Qxb2 {[%clk 0:00:10]} 36. Qa2 {[%clk 0:00:21]}  Qd4 {[%clk 0:00:09]} 37. Rd1 {[%clk 0:00:18]}  Ne3 {[%clk 0:00:08]} 38. Qd2 {[%clk 0:00:14]}  Kg7 {[%clk 0:00:08]} 39. Re1 {[%clk 0:00:13]}  Ng4 {[%clk 0:00:08]} 40. h3 {[%clk 0:00:11]}  Nf2+ {[%clk 0:00:08]} 41. Kh2 {[%clk 0:00:12]}  Qd6+ {[%clk 0:00:07]} 42. Kg1 {[%clk 0:00:12]}  Nxd3 {[%clk 0:00:07]} 43. Re3 {[%clk 0:00:10]}  Qd4 {[%clk 0:00:02]} 44. Qxd3 {[%clk 0:00:10]} 1-0


[Site "https://www.chess.com"]

[Event "Titled Tuesday Blitz February 22 Early 2022"]
[White "Prieto Aranguren, Alain"]
[Black "Seifert, Henryk"]
[WhiteFideId "2268906"]
[BlackFideId "1100963"]
[WhiteElo "2235"]
[BlackElo "2120"]
[Result "1-0"]
[Round "06"]
[TimeControl "180+1"]
[Date "2022.02.22"]
[WhiteClock "0:00:05"]
[BlackClock "0:00:01"]

1. e4 {[%clk 0:02:59]}  e6 {[%clk 0:02:59]} 2. d4 {[%clk 0:02:57]}  d5 {[%clk 0:02:59]} 3. exd5 {[%clk 0:02:57]}  exd5 {[%clk 0:02:59]} 4. Bd3 {[%clk 0:02:58]}  Nc6 {[%clk 0:02:58]} 5. Nf3 {[%clk 0:02:59]}  Bd6 {[%clk 0:02:58]} 6. O-O {[%clk 0:02:59]}  Bg4 {[%clk 0:02:57]} 7. c3 {[%clk 0:02:59]}  Nge7 {[%clk 0:02:56]} 8. Re1 {[%clk 0:02:59]}  Qd7 {[%clk 0:02:53]} 9. Nbd2 {[%clk 0:02:56]}  O-O-O {[%clk 0:02:50]} 10. b4 {[%clk 0:02:55]}  Rde8 {[%clk 0:02:50]} 11. a4 {[%clk 0:02:54]}  Bf5 {[%clk 0:02:48]} 12. Bf1 {[%clk 0:02:53]}  Ng6 {[%clk 0:02:43]} 13. a5 {[%clk 0:02:53]}  Rxe1 {[%clk 0:02:41]} 14. Nxe1 {[%clk 0:02:45]}  Kb8 {[%clk 0:02:31]} 15. b5 {[%clk 0:02:45]}  Nd8 {[%clk 0:02:29]} 16. b6 {[%clk 0:02:46]}  cxb6 {[%clk 0:02:21]} 17. axb6 {[%clk 0:02:45]}  a6 {[%clk 0:02:21]} 18. Nb3 {[%clk 0:02:35]}  Qc6 {[%clk 0:02:13]} 19. Bxa6 {[%clk 0:02:23]}  bxa6 {[%clk 0:02:07]} 20. Rxa6 {[%clk 0:02:22]}  Kb7 {[%clk 0:01:53]} 21. Na5+ {[%clk 0:02:21]}  Kxa6 {[%clk 0:01:50]} 22. Nxc6 {[%clk 0:02:21]}  Nxc6 {[%clk 0:01:49]} 23. Qf3 {[%clk 0:01:48]}  Be6 {[%clk 0:01:43]} 24. c4 {[%clk 0:01:32]}  Nxd4 {[%clk 0:01:31]} 25. Qd3 {[%clk 0:01:28]}  Rc8 {[%clk 0:00:26]} 26. c5+ {[%clk 0:00:46]}  Nb5 {[%clk 0:00:25]} 27. cxd6 {[%clk 0:00:31]}  Rxc1 {[%clk 0:00:24]} 28. Qd2 {[%clk 0:00:25]}  Ra1 {[%clk 0:00:17]} 29. h4 {[%clk 0:00:17]}  h5 {[%clk 0:00:14]} 30. Kh2 {[%clk 0:00:15]}  Kxb6 {[%clk 0:00:13]} 31. Nf3 {[%clk 0:00:12]}  Ra7 {[%clk 0:00:09]} 32. Qb2 {[%clk 0:00:12]}  Rd7 {[%clk 0:00:08]} 33. Nd4 {[%clk 0:00:12]}  Rxd6 {[%clk 0:00:06]} 34. Nxb5 {[%clk 0:00:09]}  Kc6 {[%clk 0:00:06]} 35. Nxd6 {[%clk 0:00:09]}  Kxd6 {[%clk 0:00:07]} 36. Qxg7 {[%clk 0:00:08]}  Kc5 {[%clk 0:00:06]} 37. Qh6 {[%clk 0:00:08]}  d4 {[%clk 0:00:05]} 38. Qxh5+ {[%clk 0:00:08]}  Kc4 {[%clk 0:00:05]} 39. Qg5 {[%clk 0:00:08]}  d3 {[%clk 0:00:04]} 40. h5 {[%clk 0:00:08]}  Nf8 {[%clk 0:00:01]} 41. h6 {[%clk 0:00:07]}  Ng6 {[%clk 0:00:01]} 42. h7 {[%clk 0:00:05]} 1-0


[Site "https://www.chess.com"]

[Event "Titled Tuesday Blitz February 22 Early 2022"]
[White "Purtseladze, Maka"]
[Black "Osmonbekov, Talaibek"]
[WhiteFideId "13602659"]
[BlackFideId "2017253"]
[WhiteElo "2192"]
[BlackElo "2135"]
[Result "0-1"]
[Round "06"]
[TimeControl "180+1"]
[Date "2022.02.22"]
[WhiteClock "0:00:28"]
[BlackClock "0:01:10"]

1. d4 {[%clk 0:03:00]}  e6 {[%clk 0:03:00]} 2. Nc3 {[%clk 0:02:56]}  Bb4 {[%clk 0:02:58]} 3. Qd3 {[%clk 0:02:53]}  f5 {[%clk 0:02:56]} 4. Bd2 {[%clk 0:02:47]}  Nf6 {[%clk 0:02:55]} 5. f3 {[%clk 0:02:46]}  b6 {[%clk 0:02:51]} 6. e4 {[%clk 0:02:43]}  Ba6 {[%clk 0:02:46]} 7. Qe3 {[%clk 0:02:24]}  Bxf1 {[%clk 0:02:45]} 8. Kxf1 {[%clk 0:02:24]}  Bxc3 {[%clk 0:02:43]} 9. Bxc3 {[%clk 0:02:20]}  fxe4 {[%clk 0:02:43]} 10. fxe4 {[%clk 0:02:20]}  O-O {[%clk 0:02:43]} 11. Nf3 {[%clk 0:02:21]}  Ng4 {[%clk 0:02:33]} 12. Qd3 {[%clk 0:02:13]}  c5 {[%clk 0:02:23]} 13. dxc5 {[%clk 0:02:10]}  bxc5 {[%clk 0:02:21]} 14. h3 {[%clk 0:02:09]}  Qh4 {[%clk 0:02:19]} 15. Be1 {[%clk 0:01:56]}  Qh6 {[%clk 0:02:18]} 16. Kg1 {[%clk 0:01:49]}  Nf6 {[%clk 0:02:07]} 17. Bd2 {[%clk 0:01:49]}  Qh5 {[%clk 0:02:05]} 18. Bg5 {[%clk 0:01:30]}  Nc6 {[%clk 0:01:57]} 19. c3 {[%clk 0:01:28]}  Rab8 {[%clk 0:01:36]} 20. b3 {[%clk 0:01:25]}  Qg6 {[%clk 0:01:30]} 21. Bxf6 {[%clk 0:01:05]}  Rxf6 {[%clk 0:01:29]} 22. Qxd7 {[%clk 0:01:05]}  Rxf3 {[%clk 0:01:22]} 23. Qxc6 {[%clk 0:01:02]}  Rbf8 {[%clk 0:01:21]} 24. Rh2 {[%clk 0:00:41]}  Qg5 {[%clk 0:01:11]} 25. Qxc5 {[%clk 0:00:28]}  Qxc5+ {[%clk 0:01:10]} 0-1


[Site "https://www.chess.com"]

[Event "Titled Tuesday Blitz February 22 Early 2022"]
[White "Putri, Regita Desyari"]
[Black "Slugin, Sergey"]
[WhiteFideId "7109083"]
[BlackFideId "4122569"]
[WhiteElo "1930"]
[BlackElo "2358"]
[Result "0-1"]
[Round "06"]
[TimeControl "180+1"]
[Date "2022.02.22"]
[WhiteClock "0:01:06"]
[BlackClock "0:01:32"]

1. d4 {[%clk 0:02:53]}  Nf6 {[%clk 0:02:58]} 2. c4 {[%clk 0:02:54]}  c5 {[%clk 0:02:58]} 3. Nf3 {[%clk 0:02:53]}  cxd4 {[%clk 0:02:56]} 4. Nxd4 {[%clk 0:02:54]}  Nc6 {[%clk 0:02:57]} 5. Nc3 {[%clk 0:02:53]}  g6 {[%clk 0:02:53]} 6. e4 {[%clk 0:02:54]}  Bg7 {[%clk 0:02:53]} 7. Be3 {[%clk 0:02:54]}  d6 {[%clk 0:02:52]} 8. Be2 {[%clk 0:02:54]}  O-O {[%clk 0:02:52]} 9. O-O {[%clk 0:02:55]}  Nxd4 {[%clk 0:02:48]} 10. Bxd4 {[%clk 0:02:54]}  Be6 {[%clk 0:02:48]} 11. Rc1 {[%clk 0:02:48]}  Rc8 {[%clk 0:02:46]} 12. b3 {[%clk 0:02:48]}  a6 {[%clk 0:02:43]} 13. Qd2 {[%clk 0:02:46]}  Nd7 {[%clk 0:02:12]} 14. Bxg7 {[%clk 0:02:44]}  Kxg7 {[%clk 0:02:13]} 15. Qd4+ {[%clk 0:02:43]}  f6 {[%clk 0:02:11]} 16. f4 {[%clk 0:02:39]}  Qb6 {[%clk 0:02:11]} 17. Qxb6 {[%clk 0:02:38]}  Nxb6 {[%clk 0:02:12]} 18. Bf3 {[%clk 0:02:32]}  Rc7 {[%clk 0:02:10]} 19. Nd5 {[%clk 0:02:27]}  Bxd5 {[%clk 0:02:09]} 20. cxd5 {[%clk 0:02:27]}  Rfc8 {[%clk 0:02:09]} 21. Rxc7 {[%clk 0:02:26]}  Rxc7 {[%clk 0:02:10]} 22. h3 {[%clk 0:02:19]}  Nd7 {[%clk 0:02:08]} 23. Rf2 {[%clk 0:02:15]}  Rc1+ {[%clk 0:02:07]} 24. Kh2 {[%clk 0:02:14]}  Nc5 {[%clk 0:02:06]} 25. Rd2 {[%clk 0:02:15]}  b5 {[%clk 0:01:59]} 26. Kg3 {[%clk 0:01:58]}  b4 {[%clk 0:01:58]} 27. Kf2 {[%clk 0:01:56]}  a5 {[%clk 0:01:53]} 28. g4 {[%clk 0:01:48]}  Rc3 {[%clk 0:01:42]} 29. Re2 {[%clk 0:01:19]}  Nd3+ {[%clk 0:01:39]} 30. Kg3 {[%clk 0:01:20]}  g5 {[%clk 0:01:34]} 31. fxg5 {[%clk 0:01:15]}  fxg5 {[%clk 0:01:35]} 32. Re3 {[%clk 0:01:09]}  Nc1 {[%clk 0:01:32]} 33. Re2 {[%clk 0:01:06]}  Nxe2+ {[%clk 0:01:32]} 0-1


[Site "https://www.chess.com"]